Workbook

Sheet 草案封面
A3: 陆丰市2021年预算调整草案
A5: 编制单位：陆丰市财政局
A6: 编制时间：二○二一年十二月

Sheet 一般公共预算调整总表
A1: 陆丰市2021年一般公共预算调整预算总表（草案）
A2: 附表1 | J2: 单位：万元 | K2: 单位：万元
A3: 收 入 | B3: 年初预算数 | C3: 调整数 | D3: 调整后预算数 | E3: 增加额 | F3: 增长% | G3: 支 出 | H3: 年初预算数 | I3: 调整数 | J3: 调整后预算数 | K3: 增加额 | L3: 增长%
A5: 一、一般公共预算收入 | B5: 93735 | C5: 6073 | D5: 99808 | E5: =D5-B5 -> 6073 | F5: =E5/B5*100 -> 6.5 | G5: 一、一般公共预算支出 | H5: =H6+H7 -> 894070 | I5: =I6+I7 -> -24090 | J5: 869980
A6: （一）税收收入 | B6: 54350 | D6: =B6+C6 -> 54350 | G6: （一）本级公共预算支出 | H6: 540640 | I6: =-19751-4339 -> -24090 | J6: =H6+I6 -> 516550
A7: （二）非税收入 | B7: 39385 | C7: 6073 | D7: 45458 | G7: （二）上级追加及提前下达资金、结转支出资金 | H7: 353430 | J7: =H7+I7 -> 353430
A8: 二、上级补助收入 | B8: 553783 | C8: =SUM(C9,C17) -> 40000 | D8: 593783 | G8: 二、上解上级支出 | H8: =SUM(H9:H12) -> 28878 | J8: =SUM(J9:J12) -> 28878
A9: （一）可支配财力补助 | B9: 233783 | C9: =SUM(C10:C16) -> 0 | D9: 233783 | E9: =D9-B9 -> 0 | F9: =E9/B9*100 -> 0.0 | G9: （一）上解省基数及专项借款 | H9: 25821 | J9: 25821
A10: 1、税收返还 | B10: 10181 | D10: 10181 | E10: 0 | G10: （二）上缴省临时救助借款
A11: 2、均衡性转移支付 | B11: 94324 | D11: 94324 | E11: 0 | F11: =E11/B11*100 -> 0.0 | G11: （三）上划法院、检察院经费基数 | H11: 3057 | J11: 3057
A12: 3、县级基本财力保障 | B12: 68165 | D12: 68165 | G12: 三、安排预算稳定调节基金
A13: 4、固定数据补助支出 | B13: 14349 | D13: 14349 | E13: 0 | F13: 0.0 | G13: 四、地方债券转货支出
A14: 5、企业事业单位划转补助收入（含工商质监） | B14: 4258 | D14: 4258 | E14: 0 | F14: 0.0 | G14: 五、地方债券还本支出 | H14: 8000 | J14: 8000
A15: 6、其他转移性收入（革命老区转移支付等） | B15: 22506 | D15: 22506 | E15: 0 | F15: 0.0
A16: 7、上级救助资金 | B16: 20000 | D16: 20000 | E16: 0 | F16: 0.0
A17: （二）不可支配财力补助（上级追加和提前下达资金） | B17: 320000 | C17: 40000 | D17: 360000
A18: 三、调入资金（基金收入等） | B18: 90000 | C18: -20000 | D18: 70000 | E18: =D18-B18 -> -20000
A19: 四、调入预算稳定调节基金 | D19: 0
A20: 五、收回存量资金统筹收入 | B20: 120000 | C20: -50000 | D20: 70000
A21: 1、收回统筹存量资金 | B21: 90000 | C21: -60000 | D21: 30000
A22: 2、本年专项资金统筹 | B22: 30000 | C22: 10000 | D22: 40000
A23: 六、债务收入 | B23: 40000 | C23: =C24+C25 -> 8865 | D23: 48865
A24: 1、地方政府债券转贷收入（含置换债券） | B24: 20000 | C24: 8865 | D24: 28865
A25: 2、上级临时救助借款 | B25: 20000 | D25: 20000
A26: 七、调剂使用上级补助 | D26: 0
A27: 八、上年结转收入 | B27: 33430 | C27: -9028 | D27: 24402
A28: 1、上年结转 | B28: 33430 | C28: -9028 | D28: 24402 | G28: 六、财政总支出 | H28: =H5+H8+H14 -> 930948 | I28: =I5+I8+I14 -> -24090 | J28: 906858
A29: 2、净结余 | D29: 0 | G29: 七、剔除上级追加后总支出 | H29: =H28-H7 -> 577518 | I29: =I28-I7 -> -24090 | J29: 553428
A30: 本级可安排财力合计 | B30: 577518 | C30: =C5+C9+C18+C19+C20+C26+C23+C29 -> -55062 | D30: =D5+D9+D18+D19+D20+D26+D23+D29 -> 522456 | E30: =E5+#REF!+E9+#REF! ->  | F30: =E30/B30*100 ->  | G30: 八、年终结余
A31: 加：不可支配财力补助 | B31: 320000 | C31: 40000 | D31: 360000 | G31: 其中：结转下年支出
A32: 上年结转 | B32: 33430 | C32: -9028 | D32: 24402 | G32: 净结余
A33: 合 计 | B33: 930948 | C33: =C30+C31+C32 -> -24090 | D33: =D30+D31+D32 -> 906858 | G33: 合 计 | H33: =H28+H30 -> 930948 | I33: =I28+I30 -> -24090 | J33: 906858 | K33: =#REF!+K30 ->  | L33: =#REF!+L30 -> 
A142: 重大公共卫生项目 | G142: 376 | M142: 新生儿缺陷防控，防控中心、艾滋病等防治经费
M148: 四术经费、流动人口计生经费、考核、孕前检查等
G175: 1000

Sheet 一般公共预算支出调整表
A1: 陆丰市2021年一般公共预算本级支出调整预算表(草案）
A2: 附表2 | D2: 单位：万元
A3: 项 目 | B3: 年初本级预算数 | C3: 调整项目 （存量安排） | D3: 调整后本级预算数
A5: 一般公共预算支出合计 | B5: =SUM(B6:B26) -> 540640 | C5: =SUM(C6:C26) -> -24090 | D5: =SUM(D6:D26) -> 516550
A6: 一、一般公共服务 | B6: 48426 | D6: =B6+C6 -> 48426
A7: 二、公共安全 | B7: 40396 | D7: =B7+C7 -> 40396
A8: 三、教育 | B8: 156919 | D8: 156919
A9: 四、科学技术 | B9: 1124 | D9: 1124
A10: 五、文化体育与传媒 | B10: 11755 | D10: 11755
A11: 六、社会保障和就业 | B11: 43956 | C11: -1039 | D11: 42917
A12: 七、医疗卫生 | B12: 53643 | C12: -3300 | D12: 50343
A13: 八、节能环保 | B13: 5056 | D13: 5056
A14: 九、城乡社区 | B14: 32411 | D14: 32411
A15: 十、农林水 | B15: 49245 | C15: -7780 | D15: 41465
A16: 十一、交通运输 | B16: 25414 | C16: -11971 | D16: 13443
A17: 十二、资源勘探电力信息等 | B17: 400 | D17: 400
A18: 十三、商业服务业等 | B18: 711 | D18: 711
A19: 十四、金融支出 | B19: 165 | D19: 165
A20: 十五、国土资源气象等 | B20: 5798 | D20: 5798
A21: 十六、住房保障支出 | B21: 14911 | D21: 14911
A22: 十七、粮油物资储备 | B22: 4882 | D22: 4882
A23: 十八、灾害防治及应急管理 | B23: 2523 | D23: 2523
A24: 十九、预备费 | B24: 2000 | D24: 2000
A25: 二十、债务付息及发行费支出 | B25: 1600 | D25: 1600
A26: 二十一、其他支出 | B26: 39305 | D26: 39305
A140: 重大公共卫生项目

Sheet 政府性基金调整表
A1: 陆丰市2021年政府性基金调整预算表（草案）
A2: 附表3 | I2: 单位：万元
A3: 收入项目 | B3: 年初预算数 | C3: 调整数 | D3: 调整后预算数 | F3: 年初预算数 | G3: 调整数 | I3: 调整后预算数
E4: 支出项目
G5: 追加（减）安排 | H5: 债券资金
A6: 一、基金预算收入 | B6: =SUM(B7:B23) -> 165,400 | C6: =SUM(C7:C23) -> -48,400 | D6: 117,000 | E6: 一、基金预算支出 | F6: =SUM(F7:F26) -> 81,007 | G6: =SUM(G7:G26) -> -15,201 | H6: 205,500 | I6: 271,306
A7: 1、国家电影事业发展专项资金收入 | D7: =B7+C7 -> 0 | E7: 1、国家电影事业发展专项资金相关支出
A8: 2、大中型水库移民后期扶持基金收入 | D8: =B8+C8 -> 0 | E8: 2、大中型水库移民后期扶持基金支出 | F8: 104 | G8: 3,500 | I8: =F8+G8+H8 -> 3,604
A9: 3、小型水库移民扶助基金收入 | D9: 0 | E9: 3、小型水库移民扶助基金相关支出 | F9: 77 | G9: 40 | I9: =F9+G9+H9 -> 117
A10: 4、国有土地使用权出让收入 | B10: 155,789 | C10: =D10-B10 -> -48,539 | D10: 107,250 | E10: 4、政府住房基金相关支出 | I10: 0
A11: 5、城市公用事业附加收入 | D11: =B11+C11 -> 0 | E11: 5、国有土地使用权出让相关支出 | F11: 60,256 | G11: =-15000-1631 -> -16,631 | I11: 43,625
A12: 6、国有土地收益基金收入 | B12: 1,320 | C12: =D12-B12 -> 0 | D12: 1,320 | E12: 6、城市公用事业附加相关支出 | I12: 0
A13: 7、农业土地开发资金收入 | B13: 541 | C13: -1 | D13: 540 | E13: 7、国有土地收益基金相关支出 | F13: 400 | G13: -400 | I13: 0
A14: 8、新增建设用地土地有偿使用费收入 | D14: 0 | E14: 8、农业土地开发资金相关支出 | I14: 0
A15: 9、城市基础设施配套费收入 | B15: 3,640 | C15: 0 | D15: 3,640 | E15: 9、新增建设用地有偿使用费支出 | I15: 0
A16: 10、污水处理费收入 | B16: 3,150 | C16: 0 | D16: 3,150 | E16: 10、城市基础设施配套费相关支出 | F16: 3,640 | G16: -3,640 | I16: 0
A17: 11、大中型水库库区基金收入 | D17: 0 | E17: 11、大中型水库库区基金相关支出 | F17: 28 | G17: 80 | I17: 108
A18: 12、港口建设费收入 | D18: 0 | E18: 12、港口建设费相关支出 | I18: 0
A19: 14、散装水泥专项资金收入 | D19: 0 | E19: 13、无线电频率占用费安排的支出 | I19: 0
A20: 15、新型墙体材料专项基金收入 | D20: 0 | E20: 14、散装水泥专项资金相关支出 | I20: 0
A21: 16、旅游发展基金收入 | B21: 0 | D21: 0 | E21: 15、新型墙体材料专项基金相关支出 | I21: 0
A22: 17、彩票公益金收入 | B22: 960 | C22: 140 | D22: 1,100 | E22: 16、彩票公益金相关支出 | F22: 1,352 | I22: 1,352
A23: 18、其他政府性基金收入 | E23: 17、污水处理费相关支出 | F23: 3,150 | G23: 1,850 | I23: 5,000
E24: 18、商业服务业等支出 | I24: 0
E25: 19、债务付息支出 | F25: 12,000 | I25: 12,000
E26: 20、其他政府性基金相关支出 | H26: 205,500 | I26: 205,500
D28: 0 | E28: 二、上解支出 | I28: =F28+G28+H28 -> 0
A29: 二、地方专项债券 | C29: 206,500 | D29: 206,500 | E29: 三、专项债券还本支出 | F29: 1,000 | I29: =F29+G29+H29 -> 1,000
A30: 三、基金补助收入 | B30: 23 | C30: 7,462 | D30: 7,485 | E30: 四、政府性基金调出资金 | F30: 90,000 | G30: -20,000 | I30: =F30+G30+H30 -> 70,000
A31: 四、上年结转收入 | B31: 13,642 | C31: -1,836 | D31: 11,806 | E31: 五、结转下年支出 | F31: 7,058 | G31: -6,573 | I31: =F31+G31+H31 -> 485
A32: 基 金 收 入 总 计 | B32: =B6++B29+B30+B31 -> 179,065 | C32: =C6++C29+C30+C31 -> 163,726 | D32: =D6++D29+D30+D31 -> 342,791 | E32: 基 金 支 出 总 计 | F32: =F6+F28+F29+F30+F31 -> 179,065 | G32: -41,774 | H32: 205,500 | I32: =I6+I28+I29+I30+I31 -> 342,791

Sheet 政府性债券安排调整表
A1: 陆丰市2021年新增政府性债券资金安排调整表
A2: 附表4 | L2: 单位：万元
A3: 序号 | B3: 新增债券使用项目 | C3: 债券类型 | D3: 管理使用单位 | E3: 主管部门 | F3: 4月发行 | G3: 6月发行 | H3: 8月发行 | I3: 10月发行 | J3: 债券安排 | K3: 计划调整金额 | L3: 调整后安排金额 | M3: 分管股室
A5: 1 | B5: 省道510线陆丰市河西至西南段改建工 程 | C5: 一般债券 | D5: 陆丰市交通运输局 | E5: 陆丰市交通运输局 | G5: 10,000 | J5: =SUM(F5:I5) -> 10,000 | L5: =J5-K5 -> 10,000 | M5: 综合股
A6: 2 | B6: 陆丰市博社农旅融合生态农业示范园项目 | C6: 一般债券 | D6: 甲西镇人民政府 | E6: 甲西镇人民政府 | G6: 5,000 | J6: =SUM(F6:I6) -> 5,000 | L6: =J6-K6 -> 5,000 | M6: 农业股
A7: 3 | B7: 国道228线甲子至南塘段改建工程 | C7: 一般债券 | D7: 陆丰市交通运输局 | E7: 陆丰市交通运输局 | H7: 4,000 | J7: =SUM(F7:I7) -> 4,000 | L7: 4,000
A8: 4 | B8: 陆丰市小型水库标准化建设及管理养护 | C8: 一般债券 | D8: 陆丰市水利工程建设管理中心 | E8: 陆丰市水务局 | J8: 2,800 | L8: 2,800
A9: 5 | B9: 陆丰市颐养园 | C9: 专项债券 | D9: 陆丰市民政局 | E9: 陆丰市民政局 | F9: 2,000 | H9: 3,000 | J9: 5,000 | L9: 5,000 | M9: 社保股
A10: 6 | B10: 陆丰市陆城供水管网扩建和改造工程 | C10: 专项债券 | D10: 陆丰市自来水厂 | E10: 陆丰市水务局 | F10: 2,000 | H10: 3,500 | I10: 2,500 | J10: 8,000 | L10: 8,000 | M10: 经建股
A11: 7 | B11: 陆丰市乡镇公立幼儿园补短板建设项目 | C11: 专项债券 | D11: 陆丰市教育局 | E11: 陆丰市教育局 | F11: 3,000 | H11: 5,500 | I11: 3,500 | J11: 12,000 | L11: 12,000 | M11: 行财股
A12: 8 | B12: 陆丰市人民医院传染病区建设项目 | C12: 专项债券 | D12: 陆丰市人民医院 | E12: 陆丰市卫生健康局 | G12: 5,000 | J12: 5,000 | L12: 5,000 | M12: 社保股
A13: 9 | B13: 陆丰市新时代市民广场 | C13: 专项债券 | D13: 陆丰市住房和城乡建设局 | E13: 陆丰市住房和城乡建设局 | G13: 5,000 | J13: 5,000 | L13: 5,000 | M13: 经建股
A14: 10 | B14: 陆丰市螺河东、西岸万里碧道建设工程 | C14: 专项债券 | D14: 陆丰市水利工程建设管理中心 | E14: 陆丰市水务局 | G14: 5,000 | H14: 15,000 | I14: 5,000 | J14: 25,000 | K14: -24,500 | L14: 49,500 | M14: 农业股
A15: 11 | B15: 陆丰东海经济开发区产业园区基础设施配套项目 | C15: 专项债券 | D15: 广东陆丰东海经济开发区管理委员会 | E15: 广东陆丰东海经济开发区管理委员会 | G15: 2,000 | H15: 4,000 | I15: 1,500 | J15: 7,500 | L15: 7,500 | M15: 经建股
A16: 12 | B16: 陆丰市三甲地区工业园区基础设施项目 | C16: 专项债券 | D16: 陆丰市市政建设投资有限公司 | E16: 陆丰市甲东镇人民政府 | G16: 2,000 | H16: 15,000 | I16: 8,000 | J16: 25,000 | K16: -20,000 | L16: 45,000 | M16: 经建股
A17: 13 | B17: 陆丰市高级技工学校新建项目 | C17: 专项债券 | D17: 陆丰市人力资源和社会保障局 | E17: 陆丰市人力资源和社会保障局 | H17: 2,500 | I17: 2,500 | J17: 5,000 | L17: 5,000 | M17: 社保股
A18: 14 | B18: 陆丰市碣石产业园（一期）建设项目 | C18: 专项债券 | D18: 陆丰市碣石镇人民政府 | E18: 陆丰市碣石镇人民政府 | H18: 7,500 | I18: 7,500 | J18: 15,000 | K18: -7,500 | L18: 22,500 | M18: 经建股
A19: 15 | B19: 陆丰市碣石海工基地（二期）项目 | C19: 专项债券 | D19: 陆丰市碣石临港工业园开发有限公司 | E19: 陆丰市科技工业和信息化局 | H19: 15,000 | I19: 10,000 | J19: 25,000 | K19: -8,000 | L19: 33,000 | M19: 综合股
A20: 16 | B20: 陆丰市疾病预防控制中心新建项目 | C20: 专项债券 | D20: 陆丰市疾病预防控制中心 | E20: 陆丰市卫生健康局 | H20: 3,400 | I20: 1,600 | J20: 5,000 | L20: 5,000 | M20: 社保股
A21: 17 | B21: 陆丰市粮食仓库新建项目 | C21: 专项债券 | D21: 陆丰市粮食和物资储备局 | E21: 陆丰市发改局 | I21: 2,000 | J21: 2,000 | L21: 2,000 | M21: 工贸股
A22: 18 | B22: 陆丰市螺河至碣石引水工程 | C22: 专项债券 | D22: 陆丰市水利工程建设管理中心 | E22: 陆丰市水务局 | I22: 20,000 | J22: 20,000 | K22: -15,000 | L22: 35,000 | M22: 经建股
A23: 19 | B23: 陆丰市螺河水闸重建工程 | C23: 专项债券 | D23: 陆丰市水利工程建设管理中心 | E23: 陆丰市水务局 | I23: 20,000 | J23: 20,000 | L23: 20,000 | M23: 农业股
A24: 20 | B24: 陆丰市第四人民医院（陆丰市精神病医院）建设项目 | C24: 专项债券 | D24: 陆丰市慢性病防治站 | E24: 陆丰市卫生健康局 | I24: 10,000 | J24: =SUM(F24:I24) -> 10,000 | L24: 10,000
A25: 21 | B25: 星都经济开发区产业园区基础设施配套工程 | C25: 专项债券 | D25: 广东汕尾星都经济开发区管委会 | E25: 广东汕尾星都经济开发区管委会 | I25: 11,000 | J25: 11,000 | L25: 11,000
A26: 22 | B26: 陆丰市乡村振兴人居环境提升建设工程 | C26: 专项债券 | D26: 陆丰市农业农村局 | E26: 陆丰市农业农村局 | K26: 70,000 | L26: 70,000 | M26: 社保股
A27: 23 | B27: 陆丰市东海镇老旧小区综合改造项目 | C27: 专项债券 | D27: 东海镇人民政府 | E27: 东海镇人民政府 | K27: 5,000 | L27: 5,000 | M27: 经建股
A28: 合 计 | F28: =SUM(F5:F27) -> 7,000 | G28: 34,000 | H28: 78,400 | I28: 105,100 | J28: 227,300 | K28: 0 | L28: 377,300
